[Event "8th Montevideo Open 2025"]
[Site "Montevideo"]
[Date "2025.02.08"]
[Round "8.16"]
[White "Miller, Ariel"]
[Black "Manteiga, Franco"]
[Result "1-0"]
[Annotator "NA RC"]
[ECO "B82"]
[WhiteElo "1835"]
[BlackElo "2029"]
[PlyCount "85"]
[EventDate "2025.02.01"]
[EventType "swiss"]
[EventCountry "URU"]
[SourceTitle "playchess.com"]
[Source "ChessBase"]
[SourceQuality "1"]
[TimeControl "5400+30"]

1. e4 {[%emt 0:00:09]} c5 {[%emt 0:00:03]} 2. Nf3 {[%emt 0:00:03]} e6 {[%emt 0:00:19]} 3. d4 {[%emt 0:00:05]} cxd4 {[%emt 0:00:03]} 4. Nxd4 {[%emt 0:00:03]} a6 {[%emt 0:00:10]} 5. Bd3 {[%emt 0:00:12]} Nf6 {[%emt 0:00:55]} 6. Nc3 {[%emt 0:07:58]} Qc7 {[%emt 0:00:14]} 7. f4 {[%emt 0:02:40]} d6 {[%emt 0:06:21]} 8. Be3 {[%emt 0:03:27]} Be7 {[%emt 0:04:50]} 9. Qd2 {[%emt 0:01:48]} Nc6 {[%emt 0:04:43]} 10. Nb3 {[%emt 0:01:54]} b5 {[%emt 0:10:30]} 11. a3 {[%emt 0:01:57]} Bb7 {[%emt 0:02:56]} 12. Rg1 {[%emt 0:02:17]} Ng4 {[%emt 0:00:41]} 13. O-O-O {[%emt 0:01:26]} Nxe3 {[%emt 0:04:34]} 14. Qxe3 {[%emt 0:00:28]} Rc8 {[%emt 0:06:37]} 15. Kb1 {[%emt 0:04:55]} b4 {[%emt 0:11:09]} 16. axb4 {[%emt 0:06:02]} Nxb4 {[%emt 0:00:03]} 17. Qd4 {[%emt 0:02:52]} Nxd3 {[%emt 0:05:17]} 18. Rxd3 {[%emt 0:03:47]} Bf6 {[%emt 0:01:45]} 19. Qxd6 {[%emt 0:00:43]} Qxd6 {[%emt 0:00:07]} 20. Rxd6 {[%emt 0:00:23]} Bxc3 {[%emt 0:00:21]} 21. bxc3 {[%emt 0:00:10]} Bxe4 {[%emt 0:00:51]} 22. Rxa6 {[%emt 0:01:17]} Ke7 {[%emt 0:13:37]} 23. Kb2 {[%emt 0:01:18]} Rhd8 {[%emt 0:00:42]} 24. g3 {[%emt 0:07:47]} Kf6 {[%emt 0:02:31]} 25. Rf1 {[%emt 0:07:07]} Bd5 {[%emt 0:04:54]} 26. Rf2 {[%emt 0:00:25]} Kf5 {[%emt 0:02:55]} 27. h3 {[%emt 0:02:13]} Rb8 {[%emt 0:03:32]} 28. Re2 {[%emt 0:04:27]} f6 {[%emt 0:01:39]} 29. Ra5 {[%emt 0:02:18]} Rdc8 {[%emt 0:02:12]} 30. Kc1 {[%emt 0:01:56]} Kg6 {[%emt 0:03:43]} 31. Nd4 {[%emt 0:02:11]} Bc4 {[%emt 0:00:03]} 32. Re3 {[%emt 0:01:29]} Rb6 {[%emt 0:00:07]} 33. Kd2 {[%emt 0:04:21]} Rd8 {[%emt 0:02:36]} 34. Rc5 {[%emt 0:01:16]} Bd5 {[%emt 0:00:49]} 35. h4 {[%emt 0:00:36]} Rb1 {[%emt 0:00:37]} 36. c4 {[%emt 0:00:58]} Bh1 {[%emt 0:02:37]} 37. Kc3 {[%emt 0:00:37]} Ra8 {[%emt 0:01:17]} 38. h5+ {[%emt 0:02:26]} Kh6 {[%emt 0:00:29]} 39. Rxe6 {[%emt 0:00:19]} Ra3+ {[%emt 0:00:25]} 40. Kd2 {[%emt 0:00:21]} g6 {[%emt 0:01:14]} 41. Rxf6 {[%emt 0:00:59]} Kg7 {[%emt 0:00:37]} 42. Rd6 {[%emt 0:00:33]} Rxg3 {[%emt 0:00:24]} 43. Rc7+ {[%emt 0:00:06]} 1-0

[Event "8th Montevideo Open 2025"]
[Site "Montevideo"]
[Date "2025.02.08"]
[Round "8.17"]
[White "Esteve, Federico"]
[Black "Guerrero, Alvaro"]
[Result "1-0"]
[Annotator "NA RC"]
[ECO "B06"]
[WhiteElo "1946"]
[BlackElo "2028"]
[PlyCount "97"]
[EventDate "2025.02.01"]
[EventType "swiss"]
[EventCountry "URU"]
[SourceTitle "playchess.com"]
[Source "ChessBase"]
[SourceQuality "1"]
[TimeControl "5400+30"]

1. d4 {[%emt 0:00:03]} g6 {[%emt 0:06:35]} 2. Nc3 {[%emt 0:00:24]} Bg7 {[%emt 0:00:16]} 3. e4 {[%emt 0:00:06]} d6 {[%emt 0:00:21]} 4. Nf3 {[%emt 0:00:08]} Nd7 {[%emt 0:00:10]} 5. Bc4 {[%emt 0:00:14]} e6 {[%emt 0:00:24]} 6. Bf4 {[%emt 0:00:35]} a6 {[%emt 0:00:10]} 7. a4 {[%emt 0:00:04]} b6 {[%emt 0:00:14]} 8. O-O {[%emt 0:05:47]} Bb7 {[%emt 0:00:33]} 9. Ba2 {[%emt 0:00:07]} Ne7 {[%emt 0:04:00]} 10. Qd2 {[%emt 0:06:17]} h6 {[%emt 0:00:22]} 11. h4 {[%emt 0:00:05]} Nf6 {[%emt 0:01:52]} 12. Rfe1 {[%emt 0:00:16]} Ng4 {[%emt 0:01:24]} 13. Rad1 {[%emt 0:00:24]} O-O {[%emt 0:00:27]} 14. Bg3 {[%emt 0:06:21]} Kh7 {[%emt 0:01:21]} 15. Qe2 {[%emt 0:02:18]} Nf6 {[%emt 0:01:27]} 16. e5 {[%emt 0:20:49]} Nfg8 {[%emt 0:09:00]} 17. d5 {[%emt 0:04:12]} Nf5 {[%emt 0:10:18]} 18. dxe6 {[%emt 0:04:56]} fxe6 {[%emt 0:01:45]} 19. exd6 {[%emt 0:00:12]} cxd6 {[%emt 0:00:49]} 20. Bxe6 {[%emt 0:01:10]} Nge7 {[%emt 0:02:52]} 21. h5 {[%emt 0:03:43]} Bxf3 {[%emt 0:01:42]} 22. hxg6+ {[%emt 0:00:08]} Nxg6 {[%emt 0:00:38]} 23. Qxf3 {[%emt 0:00:25]} Nxg3 {[%emt 0:03:04]} 24. Qxg3 {[%emt 0:00:05]} Be5 {[%emt 0:00:37]} 25. Qg4 {[%emt 0:00:27]} Rf4 {[%emt 0:00:30]} 26. Qh3 {[%emt 0:03:21]} Rh4 {[%emt 0:10:18]} 27. Qf3 {[%emt 0:00:26]} Rf4 {[%emt 0:02:38]} 28. Qb7+ {[%emt 0:01:00]} Kh8 {[%emt 0:00:51]} 29. g3 {[%emt 0:04:17]} Rb8 {[%emt 0:02:24]} 30. Qg2 {[%emt 0:00:37]} Rf6 {[%emt 0:01:05]} 31. Bg4 {[%emt 0:00:55]} Bxc3 {[%emt 0:03:00]} 32. bxc3 {[%emt 0:00:10]} Qc7 {[%emt 0:00:19]} 33. Re3 {[%emt 0:02:36]} Rbf8 {[%emt 0:01:05]} 34. f4 {[%emt 0:00:13]} Qc5 {[%emt 0:01:30]} 35. Rd4 {[%emt 0:00:05]} Rg8 {[%emt 0:04:50]} 36. Qh3 {[%emt 0:08:29]} Kh7 {[%emt 0:09:22]} 37. Kh2 {[%emt 0:00:32]} Rg7 {[%emt 0:00:17]} 38. Qh5 {[%emt 0:00:13]} Ne7 {[%emt 0:06:21]} 39. Kh3 {[%emt 0:01:30]} Nf5 {[%emt 0:00:47]} 40. Bxf5+ {[%emt 0:00:15]} Rxf5 {[%emt 0:00:08]} 41. Qf3 {[%emt 0:00:10]} h5 {[%emt 0:02:41]} 42. Qe4 {[%emt 0:01:05]} Rgf7 {[%emt 0:02:36]} 43. Kh2 {[%emt 0:00:52]} d5 {[%emt 0:01:13]} 44. Qe6 {[%emt 0:02:28]} R7f6 {[%emt 0:00:32]} 45. Qe7+ {[%emt 0:00:07]} Rf7 {[%emt 0:02:42]} 46. Qd8 {[%emt 0:02:44]} Qc7 {[%emt 0:01:28]} 47. Rxd5 {[%emt 0:00:37]} Rxf4 {[%emt 0:02:40]} 48. Rxh5+ {[%emt 0:01:40]} Kg6 {[%emt 0:00:22]} 49. Qg5# {[%emt 0:00:05]} 1-0

[Event "8th Montevideo Open 2025"]
[Site "Montevideo"]
[Date "2025.02.07"]
[Round "8.18"]
[White "Pichuaga, Juan Pablo"]
[Black "Delgado, Nazareno"]
[Result "1/2-1/2"]
[Annotator "NA RC"]
[ECO "E91"]
[WhiteElo "1973"]
[BlackElo "1819"]
[PlyCount "33"]
[EventDate "2025.02.01"]
[EventType "swiss"]
[EventCountry "URU"]
[SourceTitle "playchess.com"]
[Source "ChessBase"]
[SourceQuality "1"]
[TimeControl "5400+30"]

1. d4 {[%emt 1:31:00]} Nf6 {[%emt 0:00:20]} 2. Nf3 {[%emt 0:00:00]} c5 {[%emt 0:00:18]} 3. d5 {[%emt 0:00:00]} d6 {[%emt 0:00:13]} 4. c4 {[%emt 0:00:00]} g6 {[%emt 0:00:45]} 5. Nc3 {[%emt 0:00:00]} Bg7 {[%emt 0:01:01]} 6. e4 {[%emt 0:00:00]} O-O {[%emt 0:01:10]} 7. Be2 {[%emt 0:00:00]} Na6 {[%emt 0:00:40]} 8. O-O {[%emt 0:00:00]} Nc7 {[%emt 0:00:24]} 9. Qc2 {[%emt 0:00:00]} Rb8 {[%emt 0:03:23]} 10. Bd2 {[%emt 0:00:00]} a6 {[%emt 0:01:30]} 11. a4 {[%emt 0:00:00]} Bd7 {[%emt 0:02:53]} 12. Rab1 {[%emt 0:00:00]} b5 {[%emt 0:01:57]} 13. axb5 {[%emt 0:00:00]} axb5 {[%emt 0:04:26]} 14. cxb5 {[%emt 0:00:00]} Nxb5 {[%emt 0:00:22]} 15. Nxb5 {[%emt 0:00:00]} Bxb5 {[%emt 0:00:30]} 16. Bxb5 {[%emt 0:00:00]} Rxb5 {[%emt 0:00:30]} 17. b4 {[%emt 0:00:00]} 1/2-1/2

[Event "8th Montevideo Open 2025"]
[Site "Montevideo"]
[Date "2025.02.08"]
[Round "8.19"]
[White "Martello, Benjamin"]
[Black "Pascualvaca, Federico"]
[Result "1-0"]
[Annotator "NA RC"]
[ECO "E06"]
[WhiteElo "1968"]
[BlackElo "1794"]
[PlyCount "91"]
[EventDate "2025.02.01"]
[EventType "swiss"]
[EventCountry "URU"]
[SourceTitle "playchess.com"]
[Source "ChessBase"]
[SourceQuality "1"]
[TimeControl "5400+30"]

1. Nf3 {[%emt 0:00:24]} Nf6 {[%emt 0:00:54]} 2. g3 {[%emt 0:00:17]} d5 {[%emt 0:00:40]} 3. c4 {[%emt 0:00:25]} c6 {[%emt 0:00:54]} 4. Bg2 {[%emt 0:00:36]} e6 {[%emt 0:01:23]} 5. O-O {[%emt 0:00:08]} Be7 {[%emt 0:00:12]} 6. d4 {[%emt 0:00:09]} O-O {[%emt 0:01:04]} 7. Qc2 {[%emt 0:00:05]} b6 {[%emt 0:01:41]} 8. Rd1 {[%emt 0:00:22]} Bb7 {[%emt 0:01:23]} 9. Bf4 {[%emt 0:02:50]} Na6 {[%emt 0:02:45]} 10. Nbd2 {[%emt 0:02:28]} Qc8 {[%emt 0:06:08]} 11. Rac1 {[%emt 0:05:06]} Rd8 {[%emt 0:04:05]} 12. Ne5 {[%emt 0:05:52]} c5 {[%emt 0:08:10]} 13. Ndf3 {[%emt 0:01:59]} dxc4 {[%emt 0:03:27]} 14. Qxc4 {[%emt 0:01:38]} Bd5 {[%emt 0:00:58]} 15. Qa4 {[%emt 0:00:49]} Qb7 {[%emt 0:01:26]} 16. Bf1 {[%emt 0:09:02]} b5 {[%emt 0:11:25]} 17. Qa5 {[%emt 0:01:44]} c4 {[%emt 0:01:11]} 18. a4 {[%emt 0:03:31]} b4 {[%emt 0:14:56]} 19. Qb5 {[%emt 0:03:05]} Qxb5 {[%emt 0:10:18]} 20. axb5 {[%emt 0:00:01]} Nc7 {[%emt 0:04:23]} 21. Nc6 {[%emt 0:01:06]} Bxc6 {[%emt 0:00:33]} 22. bxc6 {[%emt 0:02:10]} Ncd5 {[%emt 0:01:14]} 23. Rxc4 {[%emt 0:00:41]} Nxf4 {[%emt 0:01:07]} 24. gxf4 {[%emt 0:00:08]} Nd5 {[%emt 0:00:39]} 25. e3 {[%emt 0:00:53]} Rdc8 {[%emt 0:01:05]} 26. Ne5 {[%emt 0:01:02]} Rc7 {[%emt 0:01:20]} 27. Bg2 {[%emt 0:01:13]} a5 {[%emt 0:01:53]} 28. Nd3 {[%emt 0:03:55]} Ra6 {[%emt 0:04:21]} 29. e4 {[%emt 0:00:41]} Nb6 {[%emt 0:00:49]} 30. Rcc1 {[%emt 0:00:59]} a4 {[%emt 0:01:08]} 31. f5 {[%emt 0:01:04]} exf5 {[%emt 0:01:18]} 32. e5 {[%emt 0:00:17]} Ra5 {[%emt 0:02:12]} 33. Nc5 {[%emt 0:01:09]} h5 {[%emt 0:03:45]} 34. Nb7 {[%emt 0:00:38]} Ra7 {[%emt 0:01:13]} 35. f4 {[%emt 0:02:26]} a3 {[%emt 0:02:10]} 36. bxa3 {[%emt 0:00:19]} bxa3 {[%emt 0:00:32]} 37. d5 {[%emt 0:00:12]} Nxd5 {[%emt 0:01:59]} 38. Bxd5 {[%emt 0:00:17]} a2 {[%emt 0:01:22]} 39. Nd6 {[%emt 0:00:16]} Ra4 {[%emt 0:01:04]} 40. Nb5 {[%emt 0:01:35]} Bc5+ {[%emt 0:02:42]} 41. Kh1 {[%emt 0:00:17]} Be3 {[%emt 0:00:13]} 42. Ra1 {[%emt 0:02:01]} Rc8 {[%emt 0:00:54]} 43. c7 {[%emt 0:00:32]} Bxf4 {[%emt 0:00:22]} 44. Rxa2 {[%emt 0:01:24]} Rxa2 {[%emt 0:00:13]} 45. Bxa2 {[%emt 0:00:02]} Bg5 {[%emt 0:00:40]} 46. Rd7 {[%emt 0:00:08]} 1-0

[Event "8th Montevideo Open 2025"]
[Site "Montevideo"]
[Date "2025.02.08"]
[Round "8.20"]
[White "Melani, Mauro"]
[Black "Galli, Lisandro"]
[Result "0-1"]
[Annotator "NA RC"]
[ECO "B30"]
[WhiteElo "1914"]
[BlackElo "1625"]
[PlyCount "66"]
[EventDate "2025.02.01"]
[EventType "swiss"]
[EventCountry "URU"]
[SourceTitle "playchess.com"]
[Source "ChessBase"]
[SourceQuality "1"]
[TimeControl "5400+30"]

1. e4 {[%emt 0:00:01]} c5 {[%emt 0:00:05]} 2. Nf3 {[%emt 0:00:08]} Nc6 {[%emt 0:00:03]} 3. b4 {[%emt 0:00:13]} Nxb4 {[%emt 0:00:19]} 4. c3 {[%emt 0:00:11]} Nc6 {[%emt 0:00:22]} 5. d4 {[%emt 0:00:06]} d6 {[%emt 0:00:26]} 6. Bc4 {[%emt 0:04:11]} Bg4 {[%emt 0:13:12]} 7. Bxf7+ {[%emt 0:03:23]} Kxf7 {[%emt 0:00:07]} 8. Ng5+ {[%emt 0:00:10]} Ke8 {[%emt 0:00:04]} 9. Qxg4 {[%emt 0:00:15]} Nf6 {[%emt 0:01:08]} 10. Qe6 {[%emt 0:02:04]} cxd4 {[%emt 0:01:11]} 11. Nf7 {[%emt 0:02:23]} Qd7 {[%emt 0:00:21]} 12. Qxd7+ {[%emt 0:00:26]} Nxd7 {[%emt 0:00:48]} 13. Nxh8 {[%emt 0:00:10]} g6 {[%emt 0:00:42]} 14. Na3 {[%emt 0:01:58]} Bg7 {[%emt 0:01:22]} 15. Nb5 {[%emt 0:03:50]} Kf8 {[%emt 0:00:53]} 16. Nxg6+ {[%emt 0:01:13]} hxg6 {[%emt 0:00:13]} 17. Nc7 {[%emt 0:00:20]} dxc3 {[%emt 0:07:09]} 18. Rb1 {[%emt 0:02:18]} Rc8 {[%emt 0:00:24]} 19. Ne6+ {[%emt 0:00:53]} Kf7 {[%emt 0:00:11]} 20. Nxg7 {[%emt 0:00:24]} Kxg7 {[%emt 0:00:05]} 21. O-O {[%emt 0:04:55]} Nc5 {[%emt 0:00:40]} 22. f3 {[%emt 0:02:07]} b6 {[%emt 0:01:42]} 23. Bg5 {[%emt 0:01:13]} Nd3 {[%emt 0:00:29]} 24. Be3 {[%emt 0:07:45]} Ncb4 {[%emt 1:10:34]} 25. a3 {[%emt 0:00:53]} Nc2 {[%emt 0:00:00]} 26. Bc1 {[%emt 0:12:16]} Nd4 {[%emt 0:00:00]} 27. Rf2 {[%emt 0:07:32]} c2 {[%emt 0:00:00]} 28. Rxc2 {[%emt 0:07:40]} Rxc2 {[%emt 0:02:00]} 29. Be3 {[%emt 0:00:55]} e5 {[%emt 0:00:00]} 30. h4 {[%emt 0:00:39]} Ne2+ {[%emt 0:00:00]} 31. Kf1 {[%emt 0:01:18]} Ndf4 {[%emt 0:00:00]} 32. Rd1 {[%emt 0:00:42]} Ng3+ {[%emt 0:00:00]} 33. Kg1 {[%emt 0:34:28]} Rxg2# 0-1

[Event "8th Montevideo Open 2025"]
[Site "Montevideo"]
[Date "2025.02.08"]
[Round "8.21"]
[White "Bauza, Alejandro"]
[Black "Perez Selios, Luis"]
[Result "1/2-1/2"]
[Annotator "NA RC"]
[ECO "A11"]
[WhiteElo "2116"]
[BlackElo "1801"]
[PlyCount "118"]
[EventDate "2025.02.01"]
[EventType "swiss"]
[EventCountry "URU"]
[SourceTitle "playchess.com"]
[Source "ChessBase"]
[SourceQuality "1"]
[TimeControl "5400+30"]

1. Nf3 {[%emt 0:00:05]} Nf6 {[%emt 0:00:37]} 2. g3 {[%emt 0:00:07]} d5 {[%emt 0:00:12]} 3. Bg2 {[%emt 0:00:12]} g6 {[%emt 0:00:21]} 4. c4 {[%emt 0:01:01]} c6 {[%emt 0:01:18]} 5. b3 {[%emt 0:00:18]} Bg7 {[%emt 0:00:10]} 6. Bb2 {[%emt 0:00:07]} O-O {[%emt 0:00:11]} 7. O-O {[%emt 0:00:07]} Nbd7 {[%emt 0:01:11]} 8. Qc2 {[%emt 0:00:24]} b6 {[%emt 0:01:46]} 9. d4 {[%emt 0:12:27]} Ba6 {[%emt 0:01:56]} 10. Nbd2 {[%emt 0:00:43]} Rc8 {[%emt 0:00:53]} 11. e4 {[%emt 0:05:40]} e6 {[%emt 0:03:31]} 12. Rfe1 {[%emt 0:02:14]} b5 {[%emt 0:07:17]} 13. Ba3 {[%emt 0:10:35]} Re8 {[%emt 0:02:10]} 14. e5 {[%emt 0:12:11]} Nh5 {[%emt 0:04:05]} 15. Bd6 {[%emt 0:02:46]} Bf8 {[%emt 0:02:31]} 16. c5 {[%emt 0:02:48]} Bxd6 {[%emt 0:00:37]} 17. cxd6 {[%emt 0:00:57]} c5 {[%emt 0:00:37]} 18. Bf1 {[%emt 0:02:47]} c4 {[%emt 0:04:09]} 19. b4 {[%emt 0:00:30]} Bb7 {[%emt 0:00:39]} 20. a4 {[%emt 0:00:16]} a6 {[%emt 0:00:13]} 21. axb5 {[%emt 0:00:17]} axb5 {[%emt 0:00:08]} 22. Nb1 {[%emt 0:00:04]} Qb6 {[%emt 0:01:45]} 23. Nc3 {[%emt 0:01:52]} Ra8 {[%emt 0:00:25]} 24. Qd2 {[%emt 0:00:06]} Ng7 {[%emt 0:00:24]} 25. g4 {[%emt 0:00:25]} Bc6 {[%emt 0:00:43]} 26. Qf4 {[%emt 0:02:07]} Qb7 {[%emt 0:01:50]} 27. Ng5 {[%emt 0:07:48]} Nf8 {[%emt 0:01:29]} 28. h4 {[%emt 0:01:40]} Qd7 {[%emt 0:03:17]} 29. Be2 {[%emt 0:01:08]} Rxa1 {[%emt 0:00:28]} 30. Rxa1 {[%emt 0:00:06]} Ra8 {[%emt 0:00:04]} 31. Rxa8 {[%emt 0:08:26]} Bxa8 {[%emt 0:00:08]} 32. Qf6 {[%emt 0:00:06]} Bc6 {[%emt 0:00:58]} 33. h5 {[%emt 0:00:48]} h6 {[%emt 0:01:16]} 34. Nh3 {[%emt 0:00:12]} Nh7 {[%emt 0:04:28]} 35. Qf4 {[%emt 0:01:08]} g5 {[%emt 0:00:31]} 36. Qd2 {[%emt 0:00:12]} f5 {[%emt 0:03:33]} 37. f4 {[%emt 0:01:47]} Qd8 {[%emt 0:00:25]} 38. Kg2 {[%emt 0:00:28]} gxf4 {[%emt 0:02:52]} 39. Qxf4 {[%emt 0:00:40]} Ng5 {[%emt 0:00:11]} 40. gxf5 {[%emt 0:01:41]} Nxh3 {[%emt 0:04:26]} 41. Kxh3 {[%emt 0:00:12]} Nxf5 {[%emt 0:00:10]} 42. Bd1 {[%emt 0:04:47]} Qe8 {[%emt 0:01:11]} 43. Bg4 {[%emt 0:00:43]} Qf7 {[%emt 0:01:09]} 44. Bxf5 {[%emt 0:03:23]} Qxh5+ {[%emt 0:00:32]} 45. Kg2 {[%emt 0:02:26]} Qxf5 {[%emt 0:00:25]} 46. Qxf5 {[%emt 0:00:24]} exf5 {[%emt 0:00:19]} 47. Kg3 {[%emt 0:00:37]} Kf7 {[%emt 0:00:20]} 48. d7 {[%emt 0:01:36]} Bxd7 {[%emt 0:01:05]} 49. Nxd5 {[%emt 0:00:02]} Bc6 {[%emt 0:00:21]} 50. Nc3 {[%emt 0:00:13]} Ke6 {[%emt 0:00:24]} 51. Kf4 {[%emt 0:00:15]} h5 {[%emt 0:02:47]} 52. d5+ {[%emt 0:00:50]} Bxd5 {[%emt 0:00:21]} 53. Nxb5 {[%emt 0:00:01]} Be4 {[%emt 0:00:53]} 54. Nd4+ {[%emt 0:01:02]} Ke7 {[%emt 0:00:27]} 55. b5 {[%emt 0:00:20]} h4 {[%emt 0:01:01]} 56. b6 {[%emt 0:00:09]} h3 {[%emt 0:02:32]} 57. Kg3 {[%emt 0:07:32]} Bg2 {[%emt 0:00:48]} 58. Nxf5+ {[%emt 0:01:19]} Ke6 {[%emt 0:00:10]} 59. Ne3 {[%emt 0:00:27]} Kxe5 {[%emt 0:01:04]} 1/2-1/2

[Event "8th Montevideo Open 2025"]
[Site "Montevideo"]
[Date "2025.02.07"]
[Round "8.22"]
[White "Martinez Tagliafico, Sergio"]
[Black "Saralegui, Mario"]
[Result "0-1"]
[Annotator "NA RC"]
[ECO "A53"]
[WhiteElo "1831"]
[BlackElo "2034"]
[PlyCount "50"]
[EventDate "2025.02.01"]
[EventType "swiss"]
[EventCountry "URU"]
[SourceTitle "playchess.com"]
[Source "ChessBase"]
[SourceQuality "1"]
[TimeControl "5400+30"]

1. d4 {[%emt 0:13:59]} Nf6 {[%emt 0:00:22]} 2. Nf3 {[%emt 0:00:03]} d6 {[%emt 0:00:40]} 3. g3 {[%emt 0:00:25]} Nbd7 {[%emt 0:00:14]} 4. Bg2 {[%emt 0:00:06]} e5 {[%emt 0:00:19]} 5. dxe5 {[%emt 0:00:55]} dxe5 {[%emt 0:00:10]} 6. O-O {[%emt 0:00:21]} c6 {[%emt 0:00:06]} 7. c4 {[%emt 0:02:11]} Be7 {[%emt 0:00:08]} 8. b3 {[%emt 0:00:05]} O-O {[%emt 0:00:26]} 9. Bb2 {[%emt 0:00:05]} Qc7 {[%emt 0:00:22]} 10. Qc2 {[%emt 0:00:14]} Re8 {[%emt 0:00:15]} 11. e3 {[%emt 0:00:19]} Bf8 {[%emt 0:00:07]} 12. Nc3 {[%emt 0:00:32]} a5 {[%emt 0:00:48]} 13. Rfd1 {[%emt 0:00:15]} Nc5 {[%emt 0:00:56]} 14. a3 {[%emt 0:00:43]} Bg4 {[%emt 0:01:06]} 15. b4 {[%emt 0:02:06]} e4 {[%emt 0:05:04]} 16. bxc5 {[%emt 0:01:34]} exf3 {[%emt 0:03:07]} 17. h3 {[%emt 0:02:05]} Bh5 {[%emt 0:01:41]} 18. Bf1 {[%emt 0:00:13]} Bg6 {[%emt 0:06:32]} 19. Bd3 {[%emt 0:00:55]} Bxc5 {[%emt 0:00:10]} 20. Bxg6 {[%emt 0:00:38]} hxg6 {[%emt 0:00:03]} 21. Na4 {[%emt 0:02:02]} Bxe3 {[%emt 0:05:32]} 22. fxe3 {[%emt 0:04:13]} Qxg3+ {[%emt 0:00:23]} 23. Kf1 {[%emt 0:00:18]} Qxh3+ {[%emt 0:02:26]} 24. Kg1 {[%emt 0:00:29]} Qg3+ {[%emt 0:00:55]} 25. Kf1 {[%emt 0:00:42]} Ng4 {[%emt 0:01:08]} 0-1

[Event "8th Montevideo Open 2025"]
[Site "Montevideo"]
[Date "2025.02.08"]
[Round "8.23"]
[White "Fabra, Nahiara"]
[Black "Izquierdo, Sebastian"]
[Result "1-0"]
[Annotator "NA RC"]
[ECO "B01"]
[WhiteElo "1792"]
[BlackElo "1970"]
[PlyCount "89"]
[EventDate "2025.02.01"]
[EventType "swiss"]
[EventCountry "URU"]
[SourceTitle "playchess.com"]
[Source "ChessBase"]
[SourceQuality "1"]
[TimeControl "5400+30"]

1. e4 {[%emt 0:00:05]} d5 {[%emt 0:13:38]} 2. exd5 {[%emt 0:00:08]} Nf6 {[%emt 0:00:05]} 3. d4 {[%emt 0:00:23]} Nxd5 {[%emt 0:00:25]} 4. c4 {[%emt 0:00:30]} Nb6 {[%emt 0:03:33]} 5. Nf3 {[%emt 0:00:20]} Bg4 {[%emt 0:02:29]} 6. c5 {[%emt 0:01:11]} Nd5 {[%emt 0:00:49]} 7. Qb3 {[%emt 0:01:28]} Bc8 {[%emt 0:01:01]} 8. Bg5 {[%emt 0:00:37]} c6 {[%emt 0:00:40]} 9. Bc4 {[%emt 0:01:19]} h6 {[%emt 0:00:58]} 10. Bh4 {[%emt 0:00:39]} Qa5+ {[%emt 0:00:17]} 11. Nc3 {[%emt 0:03:13]} e6 {[%emt 0:00:09]} 12. O-O {[%emt 0:00:56]} Nxc3 {[%emt 0:05:57]} 13. bxc3 {[%emt 0:05:02]} Qc7 {[%emt 0:01:44]} 14. Rab1 {[%emt 0:09:30]} Be7 {[%emt 0:00:50]} 15. Bg3 {[%emt 0:00:35]} Qd8 {[%emt 0:00:33]} 16. Rfe1 {[%emt 0:06:44]} O-O {[%emt 0:00:31]} 17. Ne5 {[%emt 0:04:58]} Bh4 {[%emt 0:03:00]} 18. Bxh4 {[%emt 0:06:15]} Qxh4 {[%emt 0:00:08]} 19. Bd3 {[%emt 0:02:10]} Qd8 {[%emt 0:03:35]} 20. Nc4 {[%emt 0:11:09]} Nd7 {[%emt 0:00:52]} 21. Be4 {[%emt 0:14:18]} Qc7 {[%emt 0:00:55]} 22. Nd6 {[%emt 0:06:09]} Rb8 {[%emt 0:03:36]} 23. Qa4 {[%emt 0:04:21]} a6 {[%emt 0:04:07]} 24. Rb2 {[%emt 0:04:37]} b5 {[%emt 0:02:27]} 25. Qd1 {[%emt 0:00:53]} Nf6 {[%emt 0:03:54]} 26. Qf3 {[%emt 0:00:36]} Bd7 {[%emt 0:00:57]} 27. Bc2 {[%emt 0:06:25]} Nd5 {[%emt 0:01:00]} 28. Qd3 {[%emt 0:03:17]} g6 {[%emt 0:03:13]} 29. Qg3 {[%emt 0:02:45]} Be8 {[%emt 0:03:24]} 30. h4 {[%emt 0:00:49]} Kh8 {[%emt 0:03:05]} 31. Qe5+ {[%emt 0:01:42]} f6 {[%emt 0:03:09]} 32. Qxe6 {[%emt 0:00:44]} Bd7 {[%emt 0:00:07]} 33. Qe4 {[%emt 0:00:47]} Rbe8 {[%emt 0:02:18]} 34. Nxe8 {[%emt 0:01:51]} Rxe8 {[%emt 0:00:09]} 35. Qxe8+ {[%emt 0:00:35]} Bxe8 {[%emt 0:00:05]} 36. Rxe8+ {[%emt 0:00:02]} Kg7 {[%emt 0:00:11]} 37. Rb1 {[%emt 0:00:34]} Ne7 {[%emt 0:34:19]} 38. Re1 {[%emt 0:00:13]} Nc8 {[%emt 0:00:06]} 39. Bb3 {[%emt 0:00:33]} Qd7 {[%emt 0:00:21]} 40. Rg8+ {[%emt 0:00:51]} Kh7 {[%emt 0:00:05]} 41. Ree8 {[%emt 0:00:23]} Ne7 {[%emt 0:00:11]} 42. Rgf8 {[%emt 0:00:38]} Nd5 {[%emt 0:00:31]} 43. Rh8+ {[%emt 0:00:16]} Kg7 {[%emt 0:00:06]} 44. Reg8+ {[%emt 0:00:04]} Kf7 {[%emt 0:00:17]} 45. Rh7+ {[%emt 0:00:28]} 1-0